fUSD/lending_fUSD_20260107
["ID","MTS","AMOUNT","RATE_DAILY","PERIOD"]
[400783180,1767827439642,-500.0,0.00013994,2]
[400783181,1767827439651,-500.0,0.00013994,2]
[400783182,1767827439661,-500.0,0.00013994,2]
[400783183,1767827439672,-500.0,0.00013994,2]
[400783185,1767827439681,-612.17704163,0.00013994,2]
[400783186,1767827439691,-500.0,0.00013994,2]
[400783188,1767827439700,-500.0,0.00013994,2]
[400783190,1767827439709,-500.0,0.00013994,2]
[400783192,1767827439719,-500.0,0.00013994,2]
[400783194,1767827439727,-500.0,0.00013994,2]
[400783196,1767827439736,-524.88501728,0.00013994,2]
[400783198,1767827439746,-500.0,0.00013994,2]
[400783200,1767827439756,-500.0,0.00013994,2]
[400783202,1767827439765,-500.0,0.00013994,2]
[400783204,1767827439774,-500.0,0.00013994,2]
[400783206,1767827439783,-500.0,0.00013994,2]
[400783208,1767827439792,-500.0,0.00013994,2]
[400783210,1767827439801,-500.0,0.00013994,2]
[400783212,1767827439810,-500.0,0.00013994,2]
[400783214,1767827439820,-500.0,0.00014013,2]
[400783216,1767827439829,-500.0,0.00014013,2]
[400783218,1767827439838,-500.0,0.00014013,2]
[400783220,1767827439848,-150.0,0.00014013,2]
[400783222,1767827439857,-150.0,0.00014013,2]
[400783224,1767827439867,-150.0,0.00014013,2]
[400783226,1767827439876,-500.0,0.00014013,2]
[400783228,1767827439887,-150.0,0.00014013,2]
[400783230,1767827439897,-500.0,0.00014013,2]
[400783232,1767827439906,-463.0,0.00014013,2]
[400783234,1767827439915,-500.0,0.00014013,2]
[400783236,1767827439925,-150.0,0.00014013,2]
[400783238,1767827439935,-1280.0,0.00014013,2]
[400783240,1767827439944,-500.0,0.00014013,2]
[400783242,1767827439953,-150.0,0.00014013,2]
[400783244,1767827439962,-726.0,0.00014013,2]
[400783246,1767827439972,-479.0,0.00014013,2]
[400783248,1767827439981,-150.0,0.00014013,2]
[400783250,1767827439991,-151.66178001,0.00014013,2]
[400783252,1767827440000,-500.0,0.00014013,2]
[400783254,1767827440010,-150.0,0.00014013,2]
[400783256,1767827440019,-500.0,0.00014013,2]
[400783258,1767827440029,-166.66,0.00014014,2]
[400783260,1767827440039,-500.0,0.00014068,2]
[400783263,1767827440048,-500.0,0.00014068,2]
[400783265,1767827440057,-500.0,0.00014068,2]
[400783267,1767827440068,-150.0,0.00014068,2]
[400783269,1767827440078,-500.0,0.00014068,2]
[400783271,1767827440089,-500.0,0.00014068,2]
[400783273,1767827440099,-463.0,0.00014068,2]
[400783275,1767827440108,-500.0,0.00014068,2]
[400783277,1767827440117,-1280.0,0.00014068,2]
[400783279,1767827440128,-500.0,0.00014068,2]
[400783281,1767827440138,-726.0,0.00014068,2]
[400783283,1767827440147,-479.0,0.00014068,2]
[400783285,1767827440157,-150.0,0.00014068,2]
[400783287,1767827440167,-500.0,0.00014068,2]
[400783290,1767827440177,-150.0,0.00014068,2]
[400783292,1767827440187,-500.0,0.00014068,2]
[400783293,1767827440197,-500.0,0.00014068,2]
[400783295,1767827440207,-200.0,0.00014069,2]
[400783298,1767827440216,-1617.63,0.00014085,2]
[400783299,1767827440226,-500.0,0.00014123,2]
[400783302,1767827440235,-500.0,0.00014123,2]
[400783304,1767827440244,-500.0,0.00014123,2]
[400783305,1767827440253,-150.0,0.00014123,2]
[400783308,1767827440263,-194.00411142,0.00014123,2]
[400783310,1767827440272,-463.0,0.00014123,2]
[400783312,1767827440282,-500.0,0.00014123,2]
[400783313,1767827440291,-1280.0,0.00014123,2]
[400783316,1767827440300,-500.0,0.00014123,2]
[400783317,1767827440309,-726.0,0.00014123,2]
[400783320,1767827440319,-479.0,0.00014123,2]
[400783321,1767827440329,-150.0,0.00014123,2]
[400783323,1767827440338,-500.0,0.00014123,2]
[400783326,1767827440350,-150.0,0.00014123,2]
[400783328,1767827440361,-500.0,0.00014123,2]
[400783329,1767827440370,-500.0,0.00014123,2]
[400783332,1767827440380,-12638.87971289,0.0001416,2]
[400783334,1767827440389,-15676.26693661,0.0001416,2]
[400783335,1767827440398,-1030.64153648,0.00014168,2]
[400783338,1767827440408,-500.0,0.00014177,2]
[400783339,1767827440417,-500.0,0.00014177,2]
[400783341,1767827440426,-150.0,0.00014177,2]
[400783344,1767827440436,-463.0,0.00014177,2]
[400783346,1767827440446,-500.0,0.00014177,2]
[400783348,1767827440455,-1280.0,0.00014177,2]
[400783350,1767827440464,-500.0,0.00014177,2]
[400783351,1767827440473,-726.0,0.00014177,2]
[400783353,1767827440483,-479.0,0.00014177,2]
[400783355,1767827440492,-150.0,0.00014177,2]
[400783356,1767827440501,-500.0,0.00014177,2]
[400783357,1767827440510,-150.0,0.00014177,2]
[400783358,1767827440519,-500.0,0.00014177,2]
[400783359,1767827440528,-500.0,0.00014178,2]
[400783360,1767827440537,-450.63605817,0.00014195,2]
[400783361,1767827440546,-500.0,0.00014195,2]
[400783362,1767827440555,-500.0,0.00014195,2]
[400783363,1767827440564,-500.0,0.00014195,2]
[400783364,1767827440574,-500.0,0.00014195,2]
[400783365,1767827440583,-200.0,0.0001421,2]
[400783366,1767827440596,-500.0,0.00014232,2]
[400783367,1767827440606,-500.0,0.00014232,2]
[400783368,1767827440615,-150.0,0.00014232,2]
[400783369,1767827440624,-463.0,0.00014232,2]
[400783370,1767827440634,-519.25199485,0.00014232,2]
[400783371,1767827440644,-1280.0,0.00014232,2]
[400783372,1767827440653,-500.0,0.00014232,2]
[400783373,1767827440663,-726.0,0.00014232,2]
[400783374,1767827440673,-479.0,0.00014232,2]
[400783375,1767827440682,-179.16326783,0.00014232,2]
[400783376,1767827440691,-500.0,0.00014232,2]
[400783377,1767827440700,-285.51728142,0.00014232,2]
[400783378,1767827440710,-500.0,0.00014232,2]
[400783379,1767827440720,-500.0,0.00014232,2]
[400783380,1767827440729,-970.4330408,0.00014238,2]
[400783381,1767827440739,-230143.82919493,0.00014248,2]
[400783382,1767827440749,-500.0,0.00014268,2]
[400783383,1767827440758,-500.0,0.00014287,2]
[400783384,1767827440767,-500.0,0.00014287,2]
[400783385,1767827440776,-250.0,0.00014287,2]
[400783386,1767827440785,-463.0,0.00014287,2]
[400783387,1767827440795,-1280.0,0.00014287,2]
[400783388,1767827440804,-500.0,0.00014287,2]
[400783389,1767827440813,-726.0,0.00014287,2]
[400783390,1767827440823,-479.0,0.00014287,2]
[400783391,1767827440832,-500.0,0.00014287,2]
[400783392,1767827440842,-606.19487819,0.00014287,2]
[400783393,1767827440852,-272.01341084,0.00014287,2]
[400783394,1767827440862,-200.0,0.00014332,2]
[400783395,1767827440871,-500.0,0.00014332,2]
[400783396,1767827440880,-500.0,0.00014342,2]
[400783397,1767827440890,-491.58151617,0.00014342,2]
[400783398,1767827440899,-463.0,0.00014342,2]
[400783399,1767827440908,-1280.0,0.00014342,2]
[400783400,1767827440917,-726.0,0.00014342,2]
[400783401,1767827440927,-479.0,0.00014342,2]
[400783402,1767827440936,-500.0,0.00014342,2]
[400783403,1767827440946,-200.0,0.00014352,2]
[400783404,1767827440955,-1617.63,0.00014359,2]
[400783405,1767827440964,-500.0,0.00014397,2]
[400783406,1767827440974,-463.0,0.00014397,2]
[400783407,1767827440983,-1280.0,0.00014397,2]
[400783408,1767827440993,-726.0,0.00014397,2]
[400783409,1767827441002,-479.0,0.00014397,2]
[400783410,1767827441012,-500.0,0.00014397,2]
[400783411,1767827441022,-500.0,0.00014451,2]
[400783412,1767827441032,-463.0,0.00014451,2]
[400783413,1767827441041,-1280.0,0.00014451,2]
[400783414,1767827441051,-726.0,0.00014451,2]
[400783415,1767827441060,-479.0,0.00014451,2]
[400783416,1767827441070,-500.0,0.00014451,2]
[400783417,1767827441079,-166.66,0.00014461,2]
[400783418,1767827441090,-600.0,0.00014505,2]
[400783419,1767827441099,-500.0,0.00014506,2]
[400783420,1767827441108,-463.0,0.00014506,2]
[400783421,1767827441117,-1280.0,0.00014506,2]
[400783422,1767827441127,-726.0,0.00014506,2]
[400783423,1767827441138,-479.0,0.00014506,2]
[400783424,1767827441147,-500.0,0.00014506,2]
[400783425,1767827441156,-500.0,0.00014542,2]
[400783426,1767827441166,-167.14,0.00014542,2]
[400783427,1767827441175,-500.0,0.00014561,2]
[400783428,1767827441185,-463.0,0.00014561,2]
[400783429,1767827441194,-1280.0,0.00014561,2]
[400783430,1767827441204,-726.0,0.00014561,2]
[400783431,1767827441213,-479.0,0.00014561,2]
[400783432,1767827441223,-500.0,0.00014561,2]
[400783433,1767827441233,-500.0,0.00014616,2]
[400783434,1767827441242,-463.0,0.00014616,2]
[400783435,1767827441252,-1280.0,0.00014616,2]
[400783436,1767827441262,-726.0,0.00014616,2]
[400783437,1767827441272,-479.0,0.00014616,2]
[400783438,1767827441281,-500.0,0.00014616,2]
[400783439,1767827441290,-12638.87971289,0.00014627,2]
[400783440,1767827441299,-15676.26693661,0.00014627,2]
[400783441,1767827441308,-1617.63,0.00014633,2]
[400783442,1767827441317,-12852.6,0.00014639,2]
[400783443,1767827441327,-500.0,0.00014671,2]
[400783444,1767827441337,-463.0,0.00014671,2]
[400783445,1767827441347,-1280.0,0.00014671,2]
[400783446,1767827441356,-726.0,0.00014671,2]
[400783447,1767827441366,-479.0,0.00014671,2]
[400783448,1767827441375,-500.0,0.00014671,2]
[400783449,1767827441385,-500.0,0.00014725,2]
[400783450,1767827441395,-463.0,0.00014725,2]
[400783451,1767827441404,-1280.0,0.00014725,2]
[400783452,1767827441413,-726.0,0.00014725,2]
[400783453,1767827441423,-479.0,0.00014725,2]
[400783454,1767827441432,-500.0,0.00014725,2]
[400783455,1767827441442,-500.0,0.0001478,2]
[400783456,1767827441452,-463.0,0.0001478,2]
[400783457,1767827441463,-1280.0,0.0001478,2]
[400783458,1767827441474,-726.0,0.0001478,2]
[400783459,1767827441485,-479.0,0.0001478,2]
[400783460,1767827441496,-500.0,0.0001478,2]
[400783461,1767827441507,-569.18,0.00014784,2]
[400783462,1767827441518,-1030.64153648,0.0001479,2]
[400783463,1767827441529,-1006.03848149,0.00014796,2]
[400783464,1767827441540,-1000.0,0.00014815,2]
[400783465,1767827441552,-500.0,0.00014816,2]
[400783466,1767827441562,-500.0,0.00014835,2]
[400783467,1767827441574,-463.0,0.00014835,2]
[400783468,1767827441584,-1280.0,0.00014835,2]
[400783469,1767827441600,-726.0,0.00014835,2]
[400783470,1767827441612,-479.0,0.00014835,2]
[400783471,1767827441623,-500.0,0.00014835,2]
[400783472,1767827441635,-200.0,0.0001488,2]
[400783473,1767827441646,-500.0,0.0001488,2]
[400783474,1767827441656,-560.79963653,0.0001489,2]
[400783475,1767827441667,-463.0,0.0001489,2]
[400783476,1767827441677,-1280.0,0.0001489,2]
[400783477,1767827441690,-726.0,0.0001489,2]
[400783478,1767827441701,-479.0,0.0001489,2]
[400783479,1767827441711,-406.89851448,0.0001489,2]
[400783480,1767827441721,-151.0,0.00014906,2]
[400783481,1767827441732,-1617.63,0.00014907,2]
[400783482,1767827441741,-255.0,0.00014908,2]
[400783483,1767827441751,-166.66,0.00014909,2]
[400783484,1767827441761,-463.0,0.00014945,2]
[400783485,1767827441771,-1280.0,0.00014945,2]
[400783486,1767827441783,-726.0,0.00014945,2]
[400783487,1767827441793,-479.0,0.00014945,2]
[400783488,1767827441804,-463.0,0.00014999,2]
[400783489,1767827441813,-1280.0,0.00014999,2]
[400783490,1767827441823,-726.0,0.00014999,2]
[400783491,1767827441835,-479.0,0.00014999,2]
[400783492,1767827441847,-200.0,0.00015,2]
[400783493,1767827441857,-191.0,0.00015,2]
[400783494,1767827441868,-420.0,0.00015004,2]
[400783495,1767827441878,-420.0,0.00015004,2]
[400783496,1767827441887,-263.0,0.00015014,2]
[400783497,1767827441896,-463.0,0.00015054,2]
[400783498,1767827441905,-1280.0,0.00015054,2]
[400783499,1767827441914,-726.0,0.00015054,2]
[400783500,1767827441923,-479.0,0.00015054,2]
[400783501,1767827441932,-1680.0,0.0001506,2]
[400783502,1767827441942,-3491.44694378,0.0001506,2]
[400783503,1767827441951,-500.0,0.00015068,2]
[400783504,1767827441961,-161.8794398,0.00015073,2]
[400783505,1767827441971,-536.66734105,0.00015073,2]
[400783506,1767827441981,-500.0,0.00015073,2]
[400783507,1767827441990,-500.0,0.00015073,2]
[400783508,1767827441999,-500.0,0.00015073,2]
[400783509,1767827442008,-500.0,0.00015073,2]
[400783510,1767827442018,-500.0,0.00015073,2]
[400783511,1767827442027,-500.0,0.00015073,2]
[400783512,1767827442037,-500.0,0.00015073,2]
[400783513,1767827442047,-169.74559645,0.00015073,2]
[400783514,1767827442057,-210.44596134,0.00015073,2]
[400783515,1767827442066,-500.0,0.00015073,2]
[400783516,1767827442076,-500.0,0.00015073,2]
[400783517,1767827442085,-500.0,0.00015073,2]
[400783518,1767827442095,-500.0,0.00015073,2]
[400783519,1767827442105,-411.91622264,0.00015073,2]
[400783520,1767827442114,-552.50710843,0.00015073,2]
[400783521,1767827442123,-502.16378022,0.00015073,2]
[400783522,1767827442132,-500.0,0.00015073,2]
[400783523,1767827442141,-413.08976684,0.00015073,2]
[400783524,1767827442151,-556.0741427,0.00015073,2]
[400783525,1767827442160,-500.0,0.00015073,2]
[400783526,1767827442169,-500.0,0.00015073,2]
[400783527,1767827442179,-500.0,0.00015073,2]
[400783528,1767827442188,-500.0,0.00015073,2]
[400783529,1767827442198,-500.0,0.00015073,2]
[400783530,1767827442207,-500.0,0.00015073,2]
[400783531,1767827442216,-500.0,0.00015073,2]
[400783532,1767827442225,-500.0,0.00015073,2]
[400783533,1767827442234,-500.0,0.00015073,2]
[400783534,1767827442244,-500.0,0.0001509,2]
[400783535,1767827442253,-12638.87971289,0.00015095,2]
[400783536,1767827442263,-15676.26693661,0.00015095,2]
[400783537,1767827442272,-463.0,0.00015109,2]
[400783538,1767827442282,-1280.0,0.00015109,2]
[400783539,1767827442293,-726.0,0.00015109,2]
[400783540,1767827442304,-479.0,0.00015109,2]
[400783541,1767827442315,-500.0,0.00015123,2]
[400783542,1767827442324,-1264.45657426,0.00015137,2]
[400783543,1767827442335,-200.0,0.0001515,2]
[400783544,1767827442344,-463.0,0.00015164,2]
[400783545,1767827442354,-1280.0,0.00015164,2]
[400783546,1767827442363,-726.0,0.00015164,2]
[400783547,1767827442372,-479.0,0.00015164,2]
[400783548,1767827442381,-250.0,0.00015171,2]
[400783549,1767827442390,-300.0,0.00015171,2]
[400783550,1767827442400,-152.10889041,0.00015171,2]
[400783551,1767827442408,-2500.0,0.00015171,2]
[400783552,1767827442418,-195.0,0.00015171,2]
[400783553,1767827442427,-5000.0,0.00015171,2]
[400783554,1767827442437,-300.0,0.00015171,2]
[400783555,1767827442446,-500.0,0.00015174,2]
[400783556,1767827442456,-500.0,0.00015174,2]
[400783557,1767827442465,-319.8416144,0.00015174,2]
[400783558,1767827442475,-500.0,0.00015178,2]
[400783559,1767827442487,-1617.63,0.00015181,2]
[400783560,1767827442499,-463.0,0.00015218,2]
[400783561,1767827442511,-1280.0,0.00015218,2]
[400783562,1767827442521,-726.0,0.00015218,2]
[400783563,1767827442533,-479.0,0.00015218,2]
[400783564,1767827442544,-500.0,0.00015232,2]
[400783565,1767827442556,-472.0,0.00015273,2]
[400783566,1767827442568,-1286.2212164,0.00015273,2]
[400783567,1767827442580,-726.1858208,0.00015273,2]
[400783568,1767827442595,-496.69707863,0.00015273,2]
[400783569,1767827442608,-500.0,0.00015287,2]
[400783570,1767827442620,-200.0,0.00015301,2]
[400783571,1767827442632,-500.0,0.00015315,2]
[400783572,1767827442644,-500.0,0.00015315,2]
[400783573,1767827442656,-500.0,0.00015315,2]
[400783574,1767827442669,-500.0,0.00015315,2]
[400783575,1767827442680,-500.0,0.00015315,2]
[400783576,1767827442941,-500.0,0.00015315,2]
[400783577,1767827442952,-521.47480439,0.00015342,2]
[400783578,1767827442963,-166.66,0.00015357,2]
[400783579,1767827442975,-1030.64153648,0.00015412,2]
[400783580,1767827442987,-860.57,0.00015426,2]
[400783581,1767827442999,-309.8049795,0.00015428,2]
[400783582,1767827443011,-500.0,0.00015428,2]
[400783583,1767827443022,-1617.63,0.00015455,2]
[400783585,1767827443033,-200.0,0.00015455,2]
[400783587,1767827443043,-12638.87971289,0.00015562,2]
[400783589,1767827443054,-15676.26693661,0.00015562,2]
[400783590,1767827443064,-200.0,0.00015609,2]
[400783591,1767827443075,-500.0,0.00015616,2]
[400783593,1767827443086,-569.18,0.0001562,2]
[400783594,1767827443097,-1000.0,0.00015621,2]
[400783595,1767827443107,-949.69083076,0.00015621,2]
[400783596,1767827443116,-1000.0,0.00015621,2]
[400783597,1767827443126,-1000.0,0.00015621,2]
[400783598,1767827443136,-515.65451742,0.00015621,2]
[400783599,1767827443145,-821.82288534,0.00015621,2]
[400783600,1767827443156,-1000.0,0.00015621,2]
[400783601,1767827443167,-1000.0,0.00015621,2]
[400783602,1767827443177,-1029.13192156,0.00015621,2]
[400783603,1767827443187,-1128.37348131,0.00015621,2]
[400783604,1767827443198,-1000.0,0.00015621,2]
[400783605,1767827443208,-1000.0,0.00015621,2]
[400783606,1767827443218,-1000.0,0.00015621,2]
[400783607,1767827443227,-1000.0,0.00015621,2]
[400783608,1767827443237,-1000.0,0.00015621,2]
[400783609,1767827443247,-1009.96734995,0.00015621,2]
[400783610,1767827443256,-500.73448024,0.00015621,2]
[400783611,1767827443266,-1000.0,0.00015621,2]
[400783612,1767827443275,-500.0,0.00015634,2]
[400783613,1767827443284,-1617.63,0.00015729,2]
[400783614,1767827443294,-166.66,0.00015805,2]
[400783615,1767827443304,-1000.0,0.00015895,2]
[400783616,1767827443314,-216.47,0.000159,2]
[400783617,1767827443323,-500.0,0.00015976,2]
[400783618,1767827443334,-600.0,0.00015979,2]
[400783619,1767827443346,-249.063448,0.00016,2]
[400783620,1767827443355,-1617.63,0.00016003,2]
[400783621,1767827443365,-574.12855637,0.00016025,2]
[400783622,1767827443376,-1500.0,0.00016025,2]
[400783623,1767827443386,-1500.0,0.00016025,2]
[400783624,1767827443396,-1500.0,0.00016025,2]
[400783625,1767827443406,-500.0,0.00016025,2]
[400783626,1767827443416,-1500.0,0.00016025,2]
[400783627,1767827443425,-500.0,0.00016025,2]
[400783628,1767827443435,-1500.0,0.00016025,2]
[400783629,1767827443444,-151.0,0.00016025,2]
[400783630,1767827443454,-500.0,0.00016025,2]
[400783631,1767827443464,-1500.0,0.00016025,2]
[400783632,1767827443475,-1500.0,0.00016025,2]
[400783633,1767827443484,-448.72451731,0.00016025,2]
[400783634,1767827443495,-200.0,0.00016025,2]
[400783635,1767827443505,-500.0,0.00016025,2]
[400783636,1767827443515,-1500.0,0.00016025,2]
[400783637,1767827443525,-207.4,0.00016025,2]
[400783638,1767827443535,-500.0,0.00016025,2]
[400783639,1767827443544,-215.0738,0.00016025,2]
[400783640,1767827443554,-1500.0,0.00016025,2]
[400783641,1767827443563,-500.0,0.00016025,2]
[400783642,1767827443573,-1500.0,0.00016025,2]
[400783643,1767827443582,-223.0315306,0.00016025,2]
[400783644,1767827443592,-500.0,0.00016025,2]
[400783645,1767827443604,-231.28369723,0.00016025,2]
[400783646,1767827443614,-1500.0,0.00016025,2]
[400783647,1767827443624,-500.0,0.00016025,2]
[400783648,1767827443636,-239.84119403,0.00016025,2]
[400783649,1767827443646,-500.0,0.00016025,2]
[400783650,1767827443657,-248.71531821,0.00016025,2]
[400783651,1767827443668,-500.0,0.00016025,2]
[400783652,1767827443679,-257.91778498,0.00016025,2]
[400783653,1767827443689,-500.0,0.00016025,2]
[400783654,1767827443699,-267.46074303,0.00016025,2]
[400783655,1767827443709,-277.35679052,0.00016025,2]
[400783656,1767827443718,-151.55763012,0.00016025,2]
[400783657,1767827443729,-2000.0,0.00016025,2]
[400783658,1767827443738,-500.0,0.00016025,2]
[400783659,1767827443747,-2000.0,0.00016025,2]
[400783660,1767827443757,-500.0,0.00016025,2]
[400783661,1767827443766,-2000.0,0.00016025,2]
[400783662,1767827443775,-500.0,0.00016025,2]
[400783663,1767827443785,-2000.0,0.00016025,2]
[400783664,1767827443794,-500.0,0.00016025,2]
[400783665,1767827443803,-2000.0,0.00016025,2]
[400783666,1767827443812,-2000.0,0.00016025,2]
[400783667,1767827443823,-500.0,0.00016025,2]
[400783668,1767827443832,-250.0,0.00016025,2]
[400783669,1767827443843,-2000.0,0.00016025,2]
[400783670,1767827443852,-500.0,0.00016025,2]
[400783671,1767827443863,-250.0,0.00016025,2]
[400783672,1767827443873,-500.0,0.00016025,2]
[400783673,1767827443882,-2000.0,0.00016025,2]
[400783674,1767827443891,-250.0,0.00016025,2]
[400783675,1767827443902,-500.0,0.00016025,2]
[400783676,1767827443911,-2000.0,0.00016025,2]
[400783677,1767827443921,-250.0,0.00016025,2]
[400783678,1767827443930,-2000.0,0.00016025,2]
[400783679,1767827443940,-500.0,0.00016025,2]
[400783680,1767827443950,-250.0,0.00016025,2]
[400783681,1767827443959,-500.0,0.00016025,2]
[400783682,1767827443968,-2000.0,0.00016025,2]
[400783683,1767827443978,-250.0,0.00016025,2]
[400783684,1767827443987,-500.0,0.00016025,2]
[400783685,1767827443998,-250.0,0.00016025,2]
[400783686,1767827444007,-151.0,0.00016025,2]
[400783687,1767827444017,-250.0,0.00016025,2]
[400783688,1767827444026,-250.0,0.00016025,2]
[400783689,1767827444036,-250.0,0.00016025,2]
[400783690,1767827444046,-620.0,0.00016025,2]
[400783691,1767827444055,-500.0,0.00016025,2]
[400783692,1767827444065,-500.0,0.00016025,2]
[400783693,1767827444075,-500.0,0.00016025,2]
[400783694,1767827444084,-500.0,0.00016025,2]
[400783695,1767827444095,-500.0,0.00016025,2]
[400783696,1767827444104,-500.0,0.00016025,2]
[400783697,1767827444114,-500.0,0.00016025,2]
[400783698,1767827444124,-250.0,0.00016025,2]
[400783699,1767827444134,-500.0,0.00016025,2]
[400783700,1767827444144,-404.25522477,0.00016025,2]
[400783701,1767827444154,-250.0,0.00016025,2]
[400783703,1767827444164,-500.0,0.00016025,2]
[400783704,1767827444173,-500.0,0.00016025,2]
[400783705,1767827444183,-500.0,0.00016025,2]
[400783706,1767827444193,-500.0,0.00016025,2]
[400783707,1767827444203,-500.0,0.00016025,2]
[400783708,1767827444213,-322.6107,0.00016025,2]
[400783709,1767827444222,-578.20924308,0.00016025,2]
[400783710,1767827444232,-12638.87971289,0.0001603,2]
[400783711,1767827444242,-15676.26693661,0.0001603,2]
[400783712,1767827444251,-1030.64153648,0.00016034,2]
[400783714,1767827444261,-174.14927633,0.0001605,2]
[400783715,1767827444271,-167.14,0.00016074,2]
[400783716,1767827444280,-3000.0,0.00016082,2]
[400783717,1767827444290,-900.0,0.00016082,2]
[400783718,1767827444300,-206987.3745759,0.00016086,2]
[400783719,1767827444309,-9999.99,0.00016116,2]
[400783720,1767827444319,-433.0,0.00016122,2]
[400783721,1767827444328,-1500.0,0.00016168,2]
[400783722,1767827444337,-500.0,0.00016168,2]
[400783723,1767827444348,-1500.0,0.00016168,2]
[400783724,1767827444357,-1500.0,0.00016168,2]
[400783725,1767827444367,-1500.0,0.00016168,2]
[400783726,1767827444377,-876.44941512,0.00016168,2]
[400783727,1767827444386,-1500.0,0.00016168,2]
[400783728,1767827444396,-1176.00349903,0.00016168,2]
[400783730,1767827444406,-1500.0,0.00016168,2]
[400783731,1767827444415,-1500.0,0.00016168,2]
[400783732,1767827444424,-1500.0,0.00016168,2]
[400783733,1767827444433,-1617.63,0.00016277,2]
[400783734,1767827444443,-500.0,0.00016286,2]
[400783735,1767827444452,-150.0,0.00016286,2]
[400783736,1767827444462,-150.0,0.00016286,2]
[400783737,1767827444471,-150.0,0.00016286,2]
[400783738,1767827444481,-150.0,0.00016286,2]
[400783739,1767827444490,-178.03708143,0.00016286,2]
[400783740,1767827444500,-174.06741652,0.00016286,2]
[400783741,1767827444509,-222.83739244,0.00016338,2]
[400783742,1767827444519,-500.0,0.00016341,2]
[400783743,1767827444528,-150.0,0.00016341,2]
[400783744,1767827444537,-150.0,0.00016341,2]
[400783745,1767827444547,-271.23482998,0.00016341,2]
[400783746,1767827444556,-281.40504741,0.00016341,2]
[400783747,1767827444566,-1100.0,0.00016356,2]
[400783748,1767827444576,-231.23799714,0.00016396,2]
[400783749,1767827444586,-204.51452503,0.00016396,2]
[400783750,1767827444599,-150.0,0.00016396,2]
[400783751,1767827444608,-400.58303632,0.00016437,2]
[400783752,1767827444618,-500.0,0.00016437,2]
[400783753,1767827444627,-569.18,0.00016437,2]
[400783754,1767827444638,-500.0,0.00016437,2]
[400783755,1767827444648,-508.99338834,0.00016437,2]
[400783756,1767827444658,-500.0,0.00016437,2]
[400783757,1767827444669,-500.0,0.00016437,2]
[400783758,1767827444679,-1179.35800526,0.00016438,2]
[400783759,1767827444688,-1179.35800526,0.00016438,2]
[400783760,1767827444698,-1179.35800526,0.00016438,2]
[400783761,1767827444707,-1179.35800526,0.00016438,2]
[400783762,1767827444717,-1179.35800526,0.00016438,2]
[400783763,1767827444727,-1179.35800526,0.00016438,2]
[400783764,1767827444736,-1179.35800526,0.00016438,2]
[400783765,1767827444746,-1179.35800526,0.00016438,2]
[400783766,1767827444755,-1179.35800526,0.00016438,2]
[400783767,1767827444765,-1179.35800526,0.00016438,2]
[400783768,1767827444774,-1179.35800526,0.00016438,2]
[400783769,1767827444784,-1179.35800526,0.00016438,2]
[400783770,1767827444794,-1179.35800526,0.00016438,2]
[400783771,1767827444804,-1179.35800526,0.00016438,2]
[400783772,1767827444813,-1179.35800526,0.00016438,2]